fUST/lending_fUST_20240516
["ID","MTS","AMOUNT","RATE_DAILY","PERIOD"]
[327127268,1715845833979,-1578.52,0.00017998,2]
[327127269,1715845833989,-895.38,0.00017998,2]
[327127270,1715845833998,-2294.81843775,0.00017998,2]
[327127337,1715845838438,-500.0,0.00017996,2]
[327127340,1715845838458,-500.0,0.00017996,2]
[327127343,1715845838470,-1376.48156225,0.00017998,2]
[327127345,1715845838480,-887.22,0.00017998,2]
[327127347,1715845838491,-500.0,0.00017998,2]
[327127349,1715845838500,-1068.16,0.00017998,2]
[327127351,1715845838511,-568.07449401,0.00017998,2]
[327127812,1715845843548,-500.0,0.00017996,2]
[327127814,1715845843558,-3033.87,0.00017996,2]
[327127816,1715845843568,-500.0,0.00017996,2]
[327127818,1715845843576,-4037.7,0.00017997,2]
[327127820,1715845843586,-500.0,0.00017997,2]
[327127822,1715845843597,-1101.69550599,0.00017998,2]
[327127824,1715845843606,-500.0,0.00017998,2]
[327127826,1715845843615,-665.49,0.00017998,2]
[327127828,1715845843624,-5275.71,0.00017998,2]
[327127830,1715845843634,-500.0,0.00017998,2]
[327127832,1715845843644,-500.0,0.00017998,2]
[327127834,1715845843653,-500.0,0.00017998,2]
[327127836,1715845843662,-8119.17174508,0.00017998,2]
[327128103,1715845846442,-500.0,0.00017996,2]
[327128105,1715845846452,-500.0,0.00017997,2]
[327128107,1715845846461,-312.22969207,0.00017997,2]
[327128987,1715845855314,154.82968734,9.999e-05,2]
[327129316,1715845858715,452.39782894,9.999e-05,2]
[327129712,1715845863212,1338.50754464,9.999e-05,2]
[327129956,1715845865966,410.3337331,9.999e-05,2]
[327130265,1715845868950,1148.70363582,0.00015,2]
[327130458,1715845870998,834.12821008,9.999e-05,2]
[327130685,1715845873266,1084.20890532,0.000138,2]
[327132242,1715845890980,207.22604498,9.999e-05,2]
[327132705,1715845895518,719.75352328,9.999e-05,2]
[327132882,1715845897419,154.82968734,9.999e-05,2]
[327133501,1715845903800,1042.94758507,9.999e-05,2]
[327134849,1715845917546,521.04229526,9.999e-05,2]
[327134974,1715845918719,281.46388118,9.999e-05,2]
[327136528,1715845934878,326.52826936,9.999e-05,2]
[327137425,1715846048758,432.9432294,0.00016918,2]
[327137426,1715846074126,234.678345,0.00016891,2]
[327137427,1715846318334,3341.0,0.000265,120]
[327137428,1715846416073,766.36174033,9.999e-05,2]
[327137430,1715846470457,521.13198345,9.999e-05,2]
[327137437,1715846486313,154.81422293,9.999e-05,2]
[327137439,1715846487778,154.81422293,9.999e-05,2]
[327137472,1715846549378,521.04229526,9.999e-05,2]
[327137475,1715846551653,200.0,0.00026281,120]
[327137504,1715846611676,200.0,0.00025668,120]
[327137516,1715846647968,1084.20890532,0.000138,2]
[327137529,1715846738141,1042.94758507,9.999e-05,2]
[327137536,1715846854104,-154.81422293,0.00017228,2]
[327137537,1715846854125,-88.83734096,0.00017229,2]
[327137538,1715846858389,150.0,0.00017001,2]
[327137576,1715846900073,197.00851648,0.00016364,2]
[327137579,1715846970853,200.0,0.00026131,120]
[327137624,1715847032627,-10505.64077383,0.00017214,2]
[327137626,1715847032636,-9395.88876832,0.00017215,2]
[327137628,1715847032646,-1884.87016128,0.00017216,2]
[327137630,1715847032655,-20239.26546952,0.00017217,2]
[327137632,1715847032664,-521.04229526,0.00017217,2]
[327137634,1715847032673,-3464.10580683,0.00017217,2]
[327137639,1715847032741,-22735.59059449,0.00017217,2]
[327137640,1715847032750,-7891.96743066,0.00017218,2]
[327137641,1715847032759,-59383.50211818,0.00017218,2]
[327137642,1715847032768,-500.0,0.00017226,2]
[327137643,1715847032777,-1237.92,0.00017226,2]
[327137644,1715847032786,-500.0,0.00017328,2]
[327137645,1715847032796,-767.01,0.00017328,2]
[327137646,1715847032805,-570.6247994,0.00017328,2]
[327137647,1715847032814,-500.0,0.00017328,2]
[327137648,1715847032822,-3188.24,0.00017328,2]
[327137649,1715847032831,-2908.44,0.00017328,2]
[327137650,1715847032841,-707.12,0.00017328,2]
[327137651,1715847032851,-276.47064883,0.00017329,2]
[327137652,1715847032860,-525.73573081,0.0001733,2]
[327137653,1715847032870,-709.96728858,0.00017431,2]
[327137654,1715847032880,-2907.45,0.00017432,2]
[327137655,1715847032890,-500.0,0.00017432,2]
[327137656,1715847032899,-1510.84,0.00017432,2]
[327137657,1715847032909,-4721.9,0.00017432,2]
[327137658,1715847032918,-500.0,0.00017432,2]
[327137659,1715847032928,-1065.99,0.00017432,2]
[327137660,1715847032937,-653.69,0.00017432,2]
[327137661,1715847032947,-5590.94,0.00017432,2]
[327137662,1715847032958,-5043.39,0.00017432,2]
[327137663,1715847032967,-1072.79,0.0001744,2]
[327137664,1715847032977,-15336.5,0.0001744,2]
[327137665,1715847032987,-2033.54839816,0.0001744,2]
[327138611,1715847047283,-521.04229526,0.00017213,2]
[327138613,1715847047296,-449.69902248,0.00017349,2]
[327138616,1715847047311,-552.38,0.00017432,2]
[327138618,1715847047323,-9395.88876832,0.00017439,2]
[327138620,1715847047335,-792.53160184,0.0001744,2]
[327138623,1715847047349,-2210.73,0.0001744,2]
[327138625,1715847047361,-1241.38,0.0001744,2]
[327138627,1715847047374,-11297.47,0.0001744,2]
[327138630,1715847047388,-6819.07489655,0.0001744,2]
[327138632,1715847047403,-415.11121662,0.0001744,2]
[327140179,1715847062995,6641.5202851,0.00016433,2]
[327143068,1715847123639,1631.58928749,0.00016433,2]
[327143069,1715847147030,154.95719504,0.00016433,2]
[327143070,1715847164439,1402.75151276,9.999e-05,2]
[327143071,1715847197006,154.86062544,9.999e-05,2]
[327143072,1715847211270,150.0,0.00023,30]
[327143073,1715847215006,184.05657759,9.999e-05,2]
[327143074,1715847370573,521.13198345,9.999e-05,2]
[327143075,1715847382034,521.13198345,9.999e-05,2]
[327143076,1715847448662,3999.45956828,0.00017217,3]
[327143078,1715847511534,257.079724,0.00016062,2]
[327143081,1715847609383,521.04229526,9.999e-05,2]
[327143085,1715847657519,9169.0127416,0.00016027,2]
[327143086,1715847658020,3603.63716095,0.00016925,2]
[327143087,1715847669855,2622.247963,9.999e-05,2]
[327143092,1715847741041,282.24146583,9.999e-05,2]
[327143094,1715847748478,521.04229526,0.00017,2]
[327143095,1715847786250,2932.4287872,0.00016011,2]
[327143096,1715847807527,7891.96743066,0.00017,2]
[327143097,1715847820357,59383.50211818,0.00017,2]
[327143098,1715847823408,359.34084354,0.00017,2]
[327143099,1715847824902,521.04229526,0.00017,2]
[327143100,1715847825013,20239.26546952,0.00017,2]
[327143101,1715847829798,10505.64077383,0.00017,2]
[327143102,1715847849071,594.78104069,0.00016998,2]
[327143103,1715847851127,594.78104067,0.00016998,2]
[327143104,1715847853059,594.78104067,0.00016999,2]
[327143105,1715847855121,594.78104067,0.00016999,2]
[327143106,1715847857070,594.78104067,0.00016999,2]
[327143107,1715847927557,293.013322,0.00017,2]
[327143108,1715847938465,3153.18251577,0.00016918,2]
[327143110,1715847996435,25916.81201335,0.00017,2]
[327143111,1715848010462,2000.0,0.00016999,2]
[327143112,1715848048255,257.079724,0.0001602,2]
[327143113,1715848108859,2000.0,0.00016999,2]
[327143115,1715848219970,2759.03470136,0.00016917,2]
[327143117,1715848222849,2000.0,0.00016998,2]
[327143158,1715848232800,-309.33493067,0.00017006,2]
[327143214,1715848237964,-211.70736459,0.00017006,2]
[327143216,1715848237973,-239.56056236,0.00017007,2]
[327143218,1715848237983,-16123.73207305,0.00017007,2]
[327143556,1715848241400,-6332.1853544,0.00017007,2]
[327143558,1715848241412,-3743.77897387,0.00017007,2]
[327143560,1715848241422,-10505.64077383,0.00017008,2]
[327143562,1715848241432,-500.0,0.00017016,2]
[327143564,1715848241441,-500.0,0.00017017,2]
[327143566,1715848241450,-804.09,0.00017017,2]
[327143568,1715848241460,-3035.84,0.00017017,2]
[327143570,1715848241469,-500.0,0.00017017,2]
[327143572,1715848241478,-739.29,0.00017017,2]
[327143574,1715848241488,-1180.12,0.00017017,2]
[327143576,1715848241498,-17205.12,0.00017017,2]
[327143578,1715848241508,-3276.14,0.00017017,2]
[327143580,1715848241517,-500.0,0.00017017,2]
[327143582,1715848241527,-3120.37,0.00017017,2]
[327143584,1715848241537,-1303.52,0.00017017,2]
[327143586,1715848241547,-2544.28,0.00017017,2]
[327143588,1715848241556,-500.0,0.00017017,2]
[327143590,1715848241566,-500.0,0.00017017,2]
[327143592,1715848241575,-1374.71,0.00017017,2]
[327143594,1715848241585,-1191.39,0.00017017,2]
[327143596,1715848241595,-10525.31,0.00017017,2]
[327143598,1715848241605,-2569.81,0.00017017,2]
[327143600,1715848241614,-3856.57,0.00017018,2]
[327143602,1715848241624,-1761.67,0.00017018,2]
[327143604,1715848241634,-1020.04,0.00017018,2]
[327143606,1715848241643,-4709.89,0.00017018,2]
[327143608,1715848241652,-538.1006364,0.00017018,2]
[327143610,1715848241662,-1332.11,0.00017018,2]
[327143612,1715848241672,-500.0,0.00017018,2]
[327143614,1715848241687,-500.0,0.00017018,2]
[327143616,1715848241696,-603.32,0.00017018,2]
[327143618,1715848241706,-2063.19,0.00017018,2]
[327143620,1715848241716,-626.45,0.00017018,2]
[327143621,1715848241725,-583.44,0.00017018,2]
[327143623,1715848241735,-5357.98,0.00017018,2]
[327143626,1715848241745,-858.07,0.00017018,2]
[327143628,1715848241756,-529.37,0.00017018,2]
[327143629,1715848241766,-500.0,0.00017018,2]
[327143632,1715848241776,-500.0,0.00017018,2]
[327143633,1715848241786,-637.77,0.00017018,2]
[327143636,1715848241796,-20584.15,0.00017018,2]
[327143638,1715848241807,-500.0,0.00017018,2]
[327143640,1715848241817,-231.80156489,0.00017018,2]
[327143642,1715848241828,-7394.17,0.00017018,2]
[327143644,1715848241837,-500.0,0.00017018,2]
[327143645,1715848241847,-8921.68644357,0.00017018,2]
[327143779,1715848242989,-710.90185917,0.00017017,2]
[327143781,1715848243003,-683.74814083,0.00017017,2]
[327143783,1715848243013,-366.19355643,0.00017018,2]
[327143785,1715848243022,-156.55830774,0.00017018,2]
[327143787,1715848243034,-343.44169226,0.00017018,2]
[327143789,1715848243043,-266.55830774,0.00017018,2]
[327144117,1715848246524,-502.17823761,0.00017016,2]
[327144118,1715848246533,-792.84914924,0.00017018,2]
[327144120,1715848246545,-203.18254302,0.00017018,2]
[327144122,1715848246554,-500.0,0.00017018,2]
[327144124,1715848246563,-788.74,0.00017018,2]
[327144125,1715848246572,-500.0,0.00017018,2]
[327144127,1715848246582,-500.0,0.00017018,2]
[327144129,1715848246591,-500.0,0.00017018,2]
[327144131,1715848246600,-539.67,0.00017018,2]
[327144133,1715848246608,-500.0,0.00017018,2]
[327144134,1715848246617,-1422.31,0.00017018,2]
[327144136,1715848246627,-850.25,0.00017018,2]
[327144138,1715848246636,-641.94973866,0.00017044,2]
[327144156,1715848318409,690.00913944,9.999e-05,2]
[327144157,1715848342917,1750.75344679,0.00016999,2]
[327144158,1715848345067,1303.3700351,0.00016015,2]
[327144159,1715848404849,1716.24701216,9.999e-05,2]
[327144161,1715848480218,57103.58273017,0.00016999,2]
[327144167,1715848553552,257.079724,0.00016011,2]
[327144168,1715848555151,2414.15536369,0.00016914,2]
[327144169,1715848561110,199.63380197,0.00017,2]
[327144170,1715848584480,521.04229526,0.00017,2]
[327144177,1715848668001,447.64848103,9.999e-05,2]
[327144178,1715848835670,2365.48986189,0.00016913,2]
[327144179,1715848918365,416.87621729,0.00016888,2]
[327144180,1715848919046,4220.67206101,0.0001674,2]
[327144181,1715849002710,154.84515485,9.999e-05,2]
[327144183,1715849116127,2069.80362911,0.00016913,2]
[327144184,1715849182674,771.22230148,0.0001531,2]
[327144185,1715849238006,585.15051404,9.999e-05,2]
[327144186,1715849239575,154.84515485,0.0001531,2]
[327144187,1715849239838,157.32518028,9.999e-05,2]
[327144188,1715849253552,155.3678082,0.0001531,2]
[327144189,1715849274453,930.78580745,0.0001616,2]
[327144190,1715849285222,294.31053376,0.00016955,2]
[327144191,1715849296374,930.78580745,0.0001616,2]
[327144199,1715849351337,24900.0,0.0001601,2]
[327144200,1715849401512,2004.86086325,0.0001691,2]
[327144201,1715849402504,256.49794386,0.00016911,2]
[327144202,1715849412955,4220.67206101,0.00016715,2]
[327144203,1715849413596,416.87621729,0.00016879,2]
[327144233,1715849432718,-154.82968734,0.00017001,2]
[327144235,1715849432728,-187.93767466,0.00017002,2]
[327144238,1715849432741,-9207.95109366,0.00017002,2]
[327144239,1715849432750,-2464.79090469,0.00017003,2]
[327144240,1715849432759,-26199.69640132,0.00017003,2]
[327144242,1715849432769,-225.28516085,0.0001701,2]
[327144245,1715849432779,-208.95851258,0.0001701,2]
[327144247,1715849432789,-1042.60704695,0.0001701,2]
[327144249,1715849432798,-434.77518099,0.0001701,2]
[327144251,1715849432808,-587.93866458,0.00017011,2]
[327144253,1715849432818,-157.66762769,0.00017011,2]
[327144255,1715849432827,-500.0,0.00017011,2]
[327144257,1715849432837,-770.58,0.00017011,2]
[327144259,1715849432847,-2909.34,0.00017011,2]
[327144261,1715849432856,-1130.95,0.00017011,2]
[327144263,1715849432866,-500.0,0.00017011,2]
[327144265,1715849432875,-7835.29832083,0.00017011,2]
[327144268,1715849432897,-7049.2629111,0.00017011,2]
[327144837,1715849438449,-1568.63554327,0.00017011,2]
[327144939,1715849441998,340.56,0.00010959,2]
[327144970,1715849443424,-35.0432248,0.00017011,2]
[327144971,1715849443433,-819.9567752,0.00017011,2]
[327144985,1715849469613,154.82968734,9.999e-05,2]
[327144986,1715849473941,1580.95146224,9.999e-05,2]
[327144987,1715849480651,910.40008117,0.00015309,2]
[327144988,1715849483434,395.19974572,9.999e-05,2]
[327144989,1715849484402,966.98974362,0.0001616,2]
[327144990,1715849485237,1402.75151276,9.999e-05,2]
[327144991,1715849495872,207.22604498,9.999e-05,2]
[327144992,1715849507114,316.01546853,9.999e-05,2]
[327144993,1715849515496,1716.24701216,9.999e-05,2]
[327144994,1715849524486,719.75352328,9.999e-05,2]
[327144995,1715849536230,154.82968734,9.999e-05,2]
[327144996,1715849539185,247.770424,0.0001601,2]
[327144997,1715849549801,6912.4015567,0.00016136,2]
[327145003,1715849574166,236.44820243,9.999e-05,2]
[327145004,1715849577670,528.27553309,9.999e-05,2]
[327145005,1715849578054,2633.51235248,0.00017,2]
[327145006,1715849599608,3061.48679003,0.00017,2]
[327145007,1715849600455,2596.45823948,0.00017,2]
[327145008,1715849601634,154.82968734,0.00017,2]
[327145009,1715849603249,1884.87016128,0.00017,2]
[327145010,1715849611260,7891.96743066,0.00017,2]
[327145011,1715849615318,2464.79090469,0.00017,2]
[327145012,1715849617024,20239.26546952,0.00017,2]
[327145021,1715849686849,1927.85407009,0.00016908,2]
[327145022,1715849687250,163.68198087,0.00016903,2]
[327145023,1715849692255,163.68198085,0.00016907,2]
[327145024,1715849697691,163.68198085,0.0001691,2]
[327145026,1715849721703,480.2207562,0.00016009,2]
[327145027,1715849877950,154.81422293,9.999e-05,2]
[327145028,1715849925596,1014.35408399,0.00016812,2]
[327145029,1715849930690,4220.67206101,0.00016743,2]
[327145030,1715849931426,416.87621729,0.00016833,2]
[327145031,1715849937452,207.22604498,9.999e-05,2]
[327145032,1715849967444,1686.87231132,0.00016907,2]
[327145034,1715850247575,1476.01327244,0.00016907,2]
[327145040,1715850426015,4220.67206101,0.00016736,2]
[327145041,1715850426463,416.87621729,0.00016794,2]
[327145043,1715850528545,1291.51161335,0.00016905,2]
[327145078,1715850632922,-26199.69640132,0.00017003,2]
[327145079,1715850632931,-5865.63207566,0.00017004,2]
[327145081,1715850632941,-500.0,0.00017005,2]
[327145083,1715850632951,-3059.3,0.00017005,2]
[327145085,1715850632960,-500.0,0.00017005,2]
[327145087,1715850632969,-1083.83,0.00017005,2]
[327145089,1715850632978,-500.0,0.00017005,2]
[327145091,1715850632987,-6123.26552305,0.00017005,2]
[327145094,1715850632998,-7786.12961317,0.00017005,2]
[327145318,1715850640767,-1891.83486378,0.00017005,2]
[327145320,1715850640777,-3105.47,0.00017005,2]
[327145322,1715850640786,-775.73,0.00017005,2]
[327145324,1715850640795,-2438.27,0.00017005,2]
[327145326,1715850640805,-500.0,0.00017005,2]
[327145328,1715850640816,-1381.79,0.00017005,2]
[327145330,1715850640825,-1377.04,0.00017005,2]
[327145332,1715850640835,-2990.36,0.00017005,2]
[327145334,1715850640845,-10086.76,0.00017005,2]
[327145336,1715850640855,-500.0,0.00017005,2]
[327145338,1715850640864,-500.0,0.00017006,2]
[327145340,1715850640873,-1630.15,0.00017006,2]
[327145342,1715850640883,-4095.81,0.00017006,2]
[327145344,1715850640892,-1083.32,0.00017006,2]
[327145346,1715850640901,-4524.6,0.00017006,2]
[327145348,1715850640910,-500.0,0.00017006,2]
[327145350,1715850640919,-1343.81,0.00017006,2]
[327145352,1715850640928,-500.0,0.00017006,2]
[327145354,1715850640937,-578.18,0.00017006,2]
[327145356,1715850640947,-670.12,0.00017006,2]
[327145358,1715850640956,-1977.23,0.00017006,2]
[327145360,1715850640965,-545.73,0.00017006,2]
[327145362,1715850640974,-559.13,0.00017006,2]
[327145364,1715850640983,-822.31,0.00017006,2]
[327145366,1715850640992,-507.31,0.00017006,2]
[327145368,1715850641001,-500.0,0.00017006,2]
[327145370,1715850641011,-500.0,0.00017006,2]
[327145372,1715850641020,-611.19,0.00017006,2]
[327145374,1715850641029,-4812.57903659,0.00017006,2]
[327145641,1715850643694,-500.0,0.00017005,2]
[327145643,1715850643704,-7094.38658938,0.00017006,2]
[327146835,1715850658371,273.37336231,9.9e-05,2]
[327146836,1715850667439,273.37336231,9.9e-05,2]
[327146837,1715850671543,1350.02169683,9.999e-05,2]
[327146838,1715850678632,719.75352328,9.999e-05,2]
[327146839,1715850685356,273.37336231,9.9e-05,2]
[327146840,1715850687318,818.02809469,9.999e-05,2]
[327146841,1715850688408,1094.64720294,9.999e-05,2]
[327146842,1715850689183,330.86077589,9.999e-05,2]
[327146843,1715850689478,186.83038505,9.999e-05,2]
[327146844,1715850690517,1375.25654254,0.00015,2]
[327146845,1715850690543,16.78057218,0.00015,2]
[327146846,1715850691954,522.43468076,9.999e-05,2]
[327146847,1715850692492,1338.50754464,9.999e-05,2]
[327146848,1715850694540,546.74672462,9.899e-05,2]
[327146849,1715850694807,1000.56956804,0.00016907,2]
[327146850,1715850704020,273.37336231,9.9e-05,2]
[327146851,1715850706018,1683.16697261,0.00015,2]
[327146852,1715850714054,207.22604498,9.999e-05,2]
[327146853,1715850717861,154.81422293,9.999e-05,2]
[327146854,1715850721266,273.37336231,9.9e-05,2]
[327146855,1715850730179,273.37336231,9.9e-05,2]
[327146856,1715850731856,154.81422293,0.00017,2]
[327146857,1715850739070,273.37336231,9.9e-05,2]
[327146858,1715850740123,731.79317581,0.00016873,2]
[327146859,1715850747884,273.37336231,9.9e-05,2]
[327146860,1715850751852,155.51999744,0.00017,2]
[327146863,1715850756940,273.37336231,9.9e-05,2]
[327146864,1715850766187,273.37336231,9.9e-05,2]
[327146865,1715850771978,20239.26546952,0.00017,2]
[327146866,1715850774554,273.37336231,9.9e-05,2]
[327146867,1715850777724,1884.87016128,0.00017,2]
[327146868,1715850781418,521.04229526,9.899e-05,2]
[327146869,1715850782723,273.37336231,9.9e-05,2]
[327146870,1715850787985,1052.35065665,0.00017,2]
[327146871,1715850791540,273.37336231,9.9e-05,2]
[327146872,1715850795347,373.46620275,0.00017,2]
[327146873,1715850798399,1158.4233731,0.00017,2]
[327146874,1715850800210,273.37336231,9.9e-05,2]
[327146875,1715850807410,-1740.1991787,0.000266,120]
[327146876,1715850809095,1130.07266169,0.00016904,2]
[327146877,1715850809620,273.37336231,9.9e-05,2]
[327146878,1715850815678,285.88496521,0.00015,2]
[327146879,1715850820256,273.37336231,9.9e-05,2]
[327146880,1715850830375,273.37336231,9.9e-05,2]
[327146881,1715850839022,273.37336231,9.9e-05,2]
[327146882,1715850848566,273.37336231,9.9e-05,2]
[327146883,1715850857583,273.37336231,9.9e-05,2]
[327146884,1715850867216,273.37336231,9.9e-05,2]
[327146885,1715850875119,273.37336231,9.9e-05,2]
[327146886,1715850884602,273.37336231,9.9e-05,2]
[327146887,1715850893544,273.37336231,9.9e-05,2]
[327146888,1715850902402,273.37336231,9.9e-05,2]
[327146889,1715850911327,273.37336231,9.9e-05,2]
[327146890,1715850917807,416.87621729,0.00016798,2]
[327146891,1715850917872,346.84707459,0.00016901,2]
[327146892,1715850921070,273.37336231,9.9e-05,2]
[327146893,1715850929571,273.37336231,9.9e-05,2]
[327146895,1715850938255,273.37336231,9.9e-05,2]
[327146896,1715850947214,175.93328777,9.9e-05,2]
[327146898,1715851094334,988.81357897,0.00016901,2]
[327146900,1715851214547,500.0,0.00017,2]
[327146901,1715851221120,500.0,0.00017,2]
[327146902,1715851225007,1319.67,0.00017,2]
[327146903,1715851233287,717.64,0.00017,2]
[327146904,1715851244733,10505.64077383,0.00017,2]
[327146905,1715851250614,2462.74,0.00017,2]
[327146906,1715851254531,3010.59,0.00017,2]
[327146907,1715851260742,10266.47666818,0.00017,2]
[327146908,1715851262567,500.0,0.00017,2]
[327146909,1715851265013,812.68,0.00017,2]
[327146910,1715851270307,500.0,0.00017,2]
[327146911,1715851275035,-6983.30112512,0.00017001,3]
[327146912,1715851275077,-185.79813627,0.00017001,2]
[327146913,1715851275114,-466.84616224,0.00017001,2]
[327146914,1715851275152,-745.4,0.00017001,2]
[327146915,1715851275189,-160.79929937,0.00017001,2]
[327146916,1715851275225,-500.0,0.00017001,2]
[327146917,1715851275262,-500.0,0.00017001,2]
[327146918,1715851275300,-496.80383585,0.00017001,2]
[327146919,1715851275338,-500.0,0.00017001,2]
[327146920,1715851275376,-546.82626511,0.00017001,2]
[327146921,1715851275414,-237.98901664,0.00017001,2]
[327146922,1715851275449,-500.0,0.00017001,2]
[327146923,1715851275484,-500.0,0.00017001,2]
[327146924,1715851275521,-500.0,0.00017001,2]
[327146925,1715851275560,-122.1123188,0.00017001,2]
[327146926,1715851276119,500.0,0.00017,2]
[327146927,1715851280787,632.45,0.00017,2]
[327146928,1715851282948,1038.67,0.00017,2]
[327146929,1715851287232,500.0,0.00017,2]
[327146930,1715851290374,575.8,0.00017,2]
[327146931,1715851290646,575.8,0.00017,2]
[327146932,1715851290837,743.41,0.00017,2]
[327146933,1715851292533,15436.57,0.00017,2]
[327146934,1715851298124,2224.94,0.00017,2]
[327146935,1715851303540,274.0226886,0.00017,2]
[327146936,1715851304240,2976.08,0.00017,2]
[327146937,1715851319390,-3491.65056256,0.00017001,3]
[327146938,1715851319533,227.57513538,0.00017,2]
[327146940,1715851325725,2336.67,0.00017,2]
[327146941,1715851327652,1308.96,0.00017,2]
[327146942,1715851332735,756.49,0.00017,2]
[327146943,1715851335156,2865.76,0.00017,2]
[327146944,1715851336881,1324.22,0.00017,2]
[327146945,1715851344315,500.0,0.00017,2]
[327146946,1715851346761,500.0,0.00017,2]
[327146947,1715851347340,494.07268562,0.00017,2]
[327146948,1715851350005,500.0,0.00017,2]
[327146949,1715851350780,9666.48,0.00017,2]
[327146950,1715851351791,9666.48,0.00017,2]
[327146951,1715851359809,500.0,0.00017,2]
[327146952,1715851363513,4125.11,0.00017,2]
[327146953,1715851367682,1562.23,0.00017,2]
[327146954,1715851368583,1536.1,0.00017,2]
[327146955,1715851373432,500.0,0.00017,2]
[327146956,1715851374753,865.21188159,0.00016901,2]
[327146957,1715851381791,1091.07,0.00017,2]
[327146958,1715851383156,500.0,0.00017,2]
[327146959,1715851384292,532.23376345,0.00017,2]
[327146960,1715851391426,500.0,0.00017,2]
[327146961,1715851394793,4336.08,0.00017,2]
[327146962,1715851397546,505.28480073,0.00017,2]
[327146963,1715851400979,416.87621729,0.00016845,2]
[327146964,1715851406206,500.0,0.00017,2]
[327146965,1715851406355,500.0,0.00017,2]
[327146966,1715851407164,990.24,0.00017,2]
[327146967,1715851407885,154.81422293,0.00017,2]
[327146968,1715851408205,3154.7,0.00017,2]
[327146969,1715851409034,2721.78826264,0.00017,2]
[327146970,1715851412498,1287.82,0.00017,2]
[327146971,1715851414835,154.89894283,0.00017,2]
[327146972,1715851415398,500.0,0.00017,2]
[327146973,1715851417752,500.0,0.00017,2]
[327146974,1715851419377,2089.04497665,0.00017,2]
[327146975,1715851421325,902.24,0.00017,2]
[327146976,1715851421986,1535.34,0.00017,2]
[327146977,1715851425828,196.53763044,0.00017,2]
[327146978,1715851426051,194.35454453,0.00017,2]
[327146979,1715851427482,554.09,0.00017,2]
[327146980,1715851428544,3370.83146638,0.00017,2]
[327146981,1715851430702,2815.37,0.00017,2]
[327146982,1715851431040,154.82968734,0.00017,2]
[327146983,1715851432025,684.38994668,9.999e-05,2]
[327146984,1715851434821,155.61084925,0.00017,2]
[327146985,1715851437505,1884.51859878,0.00017,2]
[327146986,1715851437796,1894.84,0.00017,2]
[327146987,1715851440721,500.0,0.00017,2]
[327146988,1715851442155,677.09,0.00017,2]
[327146989,1715851443196,2089.04497665,0.00017,2]
[327146990,1715851443748,5572.66,0.00017,2]
[327146991,1715851446750,930.94102569,0.00017,2]
[327146992,1715851448147,909.36767764,9.999e-05,2]
[327146993,1715851448562,3370.83146638,0.00017,2]
[327146994,1715851449663,535.84,0.00017,2]
[327146995,1715851450298,707.34712952,0.00017,2]
[327146996,1715851451567,6042.21,0.00017,2]
[327146997,1715851453473,747.41,0.00017,2]
[327146998,1715851455144,500.0,0.00017,2]
[327146999,1715851455861,1742.82,0.00017,2]
[327147000,1715851459537,788.05,0.00017,2]
[327147001,1715851463177,2089.04497665,0.00017,2]
[327147002,1715851467144,500.0,0.00017,2]
[327147003,1715851467780,2135.9,0.00017,2]
[327147004,1715851468146,903.71549729,0.00017,2]
[327147005,1715851468314,687.74,0.00017,2]
[327147006,1715851468539,500.0,0.00017,2]